bitfinex/quotes_BTCUSD_20230111
["timestamp","ask_amount","ask_price","bid_price","bid_amount"]
[1673428633662,0.01065333,17456.0,17455.0,5.24584873]
[1673428633925,0.01065333,17456.0,17455.0,5.41698664]
[1673428635498,0.01065333,17456.0,17455.0,5.24579535]
[1673428636020,0.01065333,17456.0,17455.0,5.71698664]
[1673428636545,0.01065333,17456.0,17455.0,5.97352114]
[1673428636824,0.01065333,17456.0,17455.0,5.54578514]
[1673428637066,0.01065333,17456.0,17455.0,5.97352114]
[1673428637293,0.01065333,17456.0,17455.0,5.24578514]
[1673428638182,0.01065333,17456.0,17455.0,5.97352114]
[1673428638368,0.01065333,17456.0,17455.0,6.28988764]
[1673428639669,0.01065333,17456.0,17455.0,5.71552003]
[1673428640162,0.01065333,17456.0,17455.0,6.32407087]
[1673428640952,0.01065333,17456.0,17455.0,5.98184688]
[1673428641199,0.01065333,17456.0,17455.0,6.13154371]
[1673428642871,0.01065333,17456.0,17455.0,5.70380771]
[1673428643328,0.01065333,17456.0,17455.0,6.13097429]
[1673428643538,0.01065333,17456.0,17455.0,6.67343903]
[1673428645040,0.01065333,17456.0,17455.0,6.12734401]
[1673428645287,0.01065333,17456.0,17455.0,7.10130292]
[1673428645523,0.01065333,17456.0,17455.0,6.12734401]
[1673428645802,0.01065333,17456.0,17455.0,6.73204278]
[1673428646121,0.01065333,17456.0,17455.0,6.56774278]
[1673428646330,0.00025418,17456.0,17455.0,7.23559482]
[1673428646571,0.00911407,17457.0,17456.0,0.3]
[1673428646831,0.00911407,17457.0,17456.0,4.26301727]
[1673428648046,0.00911407,17457.0,17456.0,4.68978842]
[1673428648330,0.00911407,17457.0,17456.0,4.68979836]
[1673428648550,0.00911407,17457.0,17456.0,4.40201727]
[1673428648795,0.00911407,17457.0,17456.0,4.82878334]
[1673428649816,0.00102497,17458.0,17457.0,0.97765756]
[1673428650067,0.00102497,17458.0,17457.0,5.58714876]
[1673428650301,0.00102497,17458.0,17457.0,4.44110976]
[1673428650562,0.00102497,17458.0,17457.0,3.71426608]
[1673428650817,0.00102497,17458.0,17457.0,4.22912867]
[1673428651058,0.00102497,17458.0,17457.0,4.02394337]
[1673428651314,0.00102497,17458.0,17457.0,3.68259982]
[1673428652300,0.00102497,17458.0,17457.0,4.19723399]
[1673428653059,0.00102497,17458.0,17457.0,3.23185447]
[1673428653335,0.00102497,17458.0,17457.0,3.22335447]
[1673428653580,0.00102497,17458.0,17457.0,2.6294068]
[1673428653842,0.00102497,17458.0,17457.0,2.45872917]
[1673428654090,0.00102497,17458.0,17457.0,2.09930617]
[1673428655384,0.00102497,17458.0,17457.0,2.6294068]
[1673428656647,0.00102497,17458.0,17457.0,2.62958225]
[1673428658690,0.00102497,17458.0,17457.0,2.27015925]
[1673428658945,0.00102497,17458.0,17457.0,2.62958225]
[1673428659197,0.00102497,17458.0,17457.0,3.29104679]
[1673428659458,0.00102497,17458.0,17457.0,3.59104679]
[1673428659727,0.00102497,17458.0,17457.0,3.93239068]
[1673428659966,0.00102497,17458.0,17457.0,3.59104679]
[1673428660477,0.00102497,17458.0,17457.0,4.90739841]
[1673428660726,0.00102497,17458.0,17457.0,4.60739841]
[1673428660980,0.00102497,17458.0,17457.0,3.29120037]
[1673428661482,0.00102497,17458.0,17457.0,4.7782337]
[1673428661761,0.00102497,17458.0,17457.0,4.60740249]
[1673428662027,0.00102497,17458.0,17457.0,4.77823806]
[1673428662335,0.00102497,17458.0,17457.0,4.90740249]
[1673428664597,0.00102497,17458.0,17457.0,4.60740249]
[1673428664889,0.00102497,17458.0,17457.0,4.90740249]
[1673428665365,0.00102497,17458.0,17457.0,5.07816064]
[1673428665628,0.00102497,17458.0,17457.0,5.07867071]
[1673428666882,0.00102497,17458.0,17457.0,4.60831407]
[1673428667417,0.00102497,17458.0,17457.0,4.77867071]
[1673428667676,0.00102497,17458.0,17457.0,4.60834224]
[1673428668195,0.00102497,17458.0,17457.0,5.33510831]
[1673428668196,0.16532497,17458.0,17457.0,5.33510831]
[1673428668762,0.16532497,17458.0,17457.0,4.60834224]
[1673428668922,0.16532497,17458.0,17457.0,4.77867071]
[1673428669182,0.16532497,17458.0,17457.0,5.03509678]
[1673428669438,0.16532497,17458.0,17457.0,4.77867071]
[1673428671281,0.16532497,17458.0,17457.0,5.07867071]
[1673428672035,0.16532497,17458.0,17457.0,4.77867071]
[1673428672527,0.00102497,17458.0,17457.0,4.77867071]
[1673428672795,0.00102497,17458.0,17457.0,5.07867071]
[1673428673288,0.00102497,17458.0,17457.0,4.77867071]
[1673428673521,0.00102497,17458.0,17457.0,5.07867071]
[1673428673746,0.00102497,17458.0,17457.0,4.77867071]
[1673428674274,0.00090652,17458.0,17457.0,4.77867071]
[1673428676048,0.00090652,17458.0,17457.0,4.43681675]
[1673428676768,0.00090652,17458.0,17457.0,4.77899279]
[1673428677530,0.00090652,17458.0,17457.0,4.43681675]
[1673428678759,0.00090652,17458.0,17457.0,4.4196726]
[1673428679260,0.00090652,17458.0,17457.0,4.07739375]
[1673428680507,0.00090652,17458.0,17457.0,4.41976261]
[1673428683230,0.00090652,17458.0,17457.0,4.24981515]
[1673428683995,0.00090652,17458.0,17457.0,4.41976261]
[1673428684497,0.00090652,17458.0,17457.0,4.24979143]
[1673428686489,0.00090652,17458.0,17457.0,4.41976261]
[1673428690010,0.00090652,17458.0,17457.0,3.56275958]
[1673428690322,0.00090652,17458.0,17457.0,4.20813987]
[1673428690523,0.00090652,17458.0,17457.0,4.4407968]
[1673428691259,0.00090652,17458.0,17457.0,3.79541651]
[1673428691775,0.00090652,17458.0,17457.0,4.41393262]
[1673428692024,0.00090652,17458.0,17457.0,4.32835178]
[1673428692277,3.62e-05,17458.0,17457.0,4.88680737]
[1673428692547,3.62e-05,17458.0,17457.0,5.48768717]
[1673428692782,3.62e-05,17458.0,17457.0,6.08163484]
[1673428698293,3.62e-05,17458.0,17457.0,6.08153161]
[1673428699076,3.62e-05,17458.0,17457.0,6.08065181]
[1673428699332,0.01518201,17459.0,17458.0,0.3000238]
[1673428699625,0.01518201,17459.0,17458.0,5.04976507]
[1673428699856,0.01518201,17459.0,17458.0,6.07340372]
[1673428700353,0.01518201,17459.0,17458.0,5.94976507]
[1673428700600,0.01518201,17459.0,17458.0,6.7288827]
[1673428700848,0.01518201,17459.0,17458.0,5.51376507]
[1673428701433,1e-08,17459.0,17458.0,7.2162628]
[1673428701638,1.02097809,17460.0,17458.0,7.74627927]
[1673428701872,1.02097809,17460.0,17459.0,4.36730733]
[1673428702161,1.02097809,17460.0,17459.0,5.81284733]
[1673428703282,1.02097809,17460.0,17459.0,5.95184733]
[1673428703499,0.0245706,17461.0,17460.0,1.02097]
[1673428703808,0.02623083,17463.0,17460.0,5.92428773]
[1673428704045,0.02623083,17463.0,17462.0,2.1121538]
[1673428704299,0.02608083,17464.0,17463.0,0.3]
[1673428704547,0.02608083,17464.0,17463.0,4.6844377]
[1673428704840,0.02608083,17464.0,17463.0,5.4327172]
[1673428705122,0.02608083,17464.0,17463.0,3.40262661]
[1673428705370,0.02608083,17464.0,17463.0,3.54062661]
[1673428705616,0.02608083,17464.0,17463.0,3.58490887]
[1673428705875,0.02608083,17464.0,17463.0,3.28490887]
[1673428706134,0.02608083,17464.0,17463.0,3.23021312]
[1673428706671,0.02608083,17464.0,17463.0,2.4657623]
[1673428707211,0.26375872,17464.0,17463.0,2.1657623]
[1673428707464,0.66629444,17464.0,17463.0,0.710639]
[1673428707717,1.15699444,17464.0,17463.0,0.710639]
[1673428708277,1.15699444,17464.0,17463.0,0.572639]
[1673428708806,1.15799444,17464.0,17463.0,0.711639]
[1673428709055,1.15699444,17464.0,17463.0,0.572639]
[1673428709361,1.15799444,17464.0,17463.0,0.712639]
[1673428709872,1.15699444,17464.0,17463.0,0.572639]
[1673428710126,1.15799444,17464.0,17463.0,0.712639]
[1673428711404,0.35378083,17464.0,17463.0,1.87685136]
[1673428711651,0.18968083,17464.0,17463.0,1.87685136]
[1673428711951,0.18968083,17464.0,17463.0,1.73685136]
[1673428711952,0.18868083,17464.0,17463.0,1.73685136]
[1673428712195,0.18968083,17464.0,17463.0,2.23727436]
[1673428712435,0.18968083,17464.0,17463.0,2.17785136]
[1673428712710,0.18868083,17464.0,17463.0,1.73685136]
[1673428712943,0.18968083,17464.0,17463.0,1.87685136]
[1673428713208,0.18868083,17464.0,17463.0,1.73685136]
[1673428713447,0.18968083,17464.0,17463.0,2.17585136]
[1673428713946,0.18968083,17464.0,17463.0,2.53527436]
[1673428714193,0.18968083,17464.0,17463.0,3.12922203]
[1673428714939,0.02708083,17464.0,17463.0,2.70815182]
[1673428715211,0.02708083,17464.0,17463.0,3.13547263]
[1673428715437,0.02708083,17464.0,17463.0,2.53764867]
[1673428715965,0.02708083,17464.0,17463.0,3.14411144]
[1673428718629,0.02708083,17464.0,17463.0,3.14534875]
[1673428718886,0.01708083,17464.0,17463.0,3.14534875]
[1673428720505,0.01708083,17464.0,17463.0,2.53888598]
[1673428721610,0.01708083,17464.0,17463.0,3.16179655]
[1673428722914,0.01708083,17464.0,17463.0,2.53888598]
[1673428723673,0.01708083,17464.0,17463.0,3.14221394]
[1673428724460,0.01708083,17464.0,17463.0,2.53888598]
[1673428724708,0.01708083,17464.0,17463.0,3.258281]
[1673428725221,0.01708083,17464.0,17463.0,2.53888598]
[1673428725479,0.01708083,17464.0,17463.0,3.11734714]
[1673428725751,0.01708083,17464.0,17463.0,2.81734714]
[1673428726296,0.01708083,17464.0,17463.0,3.11734714]
[1673428726487,0.01708083,17464.0,17463.0,1.86280102]
[1673428726737,0.01708083,17464.0,17463.0,1.86273916]
[1673428729064,0.68555495,17464.0,17463.0,1.86273916]
[1673428730561,0.01708083,17464.0,17463.0,1.86273916]
[1673428734159,0.06979018,17464.0,17463.0,1.86273916]
[1673428735408,0.23379018,17464.0,17463.0,1.86273916]
[1673428738424,0.23379018,17464.0,17463.0,2.03324231]
[1673428739162,0.23379018,17464.0,17463.0,2.70575067]
[1673428740430,0.23379018,17464.0,17463.0,2.70585919]
[1673428741260,0.23379018,17464.0,17463.0,3.85120154]
[1673428741530,0.23379018,17464.0,17463.0,2.70585919]
[1673428742024,0.23379018,17464.0,17463.0,3.85119947]
[1673428742536,0.23379018,17464.0,17463.0,2.70585919]
[1673428742778,0.23368718,17464.0,17463.0,2.70585919]
[1673428743030,0.23368718,17464.0,17463.0,2.03324231]
[1673428743549,0.23368718,17464.0,17463.0,2.28896005]
[1673428744527,0.23368718,17464.0,17463.0,2.71196351]
[1673428748524,0.23368718,17464.0,17463.0,3.85732685]
[1673428748793,0.23368718,17464.0,17463.0,1.45478115]
[1673428749030,0.23368718,17464.0,17463.0,0.711639]
[1673428749031,1.42435814,17464.0,17463.0,0.711639]
[1673428749522,1.78378114,17464.0,17463.0,0.711639]
[1673428750313,1.42435814,17464.0,17463.0,0.711639]
[1673428750802,0.94760388,17464.0,17463.0,0.711639]
[1673428751069,1.42398719,17464.0,17463.0,0.711639]
[1673428751560,1.42408025,17464.0,17463.0,0.711639]
[1673428751789,0.94760388,17464.0,17463.0,0.711639]
[1673428752289,1.30702688,17464.0,17463.0,0.711639]
[1673428752530,1.78350215,17464.0,17463.0,0.711639]
[1673428752777,1.42407915,17464.0,17463.0,0.711639]
[1673428753276,1.42407915,17464.0,17463.0,0.139]
[1673428754800,1.78350215,17464.0,17463.0,0.139]
[1673428757082,3.10370412,17464.0,17463.0,0.139]
[1673428757355,2.93180215,17464.0,17463.0,0.139]
[1673428757834,2.93080215,17464.0,17462.0,0.572647]
[1673428758097,1.32657632,17463.0,17462.0,0.572647]
[1673428758350,1.62657632,17463.0,17462.0,0.572647]
[1673428758644,0.63910682,17463.0,17462.0,0.572647]
[1673428759374,1.33162327,17463.0,17462.0,0.712647]
[1673428759639,1.33162327,17463.0,17462.0,0.14]
[1673428760440,1.33162327,17463.0,17461.0,1.25322583]
[1673428760718,1.16952327,17463.0,17462.0,0.14]
[1673428760906,1.33352327,17463.0,17462.0,0.14]
[1673428761158,1.33252327,17463.0,17461.0,1.25322583]
[1673428761426,0.164,17462.0,17461.0,1.25322583]
[1673428761684,0.164,17462.0,17461.0,1.39222583]
[1673428761913,0.164,17462.0,17461.0,0.572673]
[1673428762196,0.76359016,17462.0,17461.0,0.572673]
[1673428763470,0.76559016,17462.0,17461.0,0.711673]
[1673428767283,0.7655094,17462.0,17461.0,0.139]
[1673428767799,1.24108377,17462.0,17461.0,0.139]
[1673428769554,0.7655094,17462.0,17461.0,0.139]
[1673428770295,0.7655094,17462.0,17461.0,0.711704]
[1673428771567,1.24127125,17462.0,17461.0,0.711704]
[1673428772611,1.40527125,17462.0,17461.0,0.711704]
[1673428777904,0.9295094,17462.0,17461.0,0.711704]
[1673428778690,1.40540889,17462.0,17461.0,0.711704]
[1673428778949,0.9295094,17462.0,17461.0,0.711704]
[1673428779486,0.9295094,17462.0,17461.0,0.139]
[1673428781253,0.9295094,17462.0,17461.0,0.059601]
[1673428781753,1.40377879,17462.0,17461.0,0.059601]
[1673428782249,1.40377879,17462.0,17461.0,0.632305]
[1673428782495,1.23985955,17462.0,17461.0,0.632305]
[1673428782986,0.76559016,17462.0,17461.0,1.205009]
[1673428784034,1.23990619,17462.0,17461.0,1.205009]
[1673428784292,0.76559016,17462.0,17461.0,1.205009]
[1673428786090,0.76559016,17462.0,17461.0,1.37551215]
[1673428786842,0.002,17462.0,17461.0,4.89324297]
[1673428787375,0.002,17462.0,17461.0,5.06479969]
[1673428787830,0.002,17462.0,17461.0,5.36479969]
[1673428788562,0.002,17462.0,17461.0,5.02385201]
[1673428790050,0.002,17462.0,17461.0,4.72385201]
[1673428790787,0.002,17462.0,17461.0,5.02385201]
[1673428791812,3.095e-05,17462.0,17461.0,4.59770904]
[1673428792072,3.095e-05,17462.0,17461.0,4.76070904]
[1673428792323,3.095e-05,17462.0,17461.0,5.85709002]
[1673428794353,3.095e-05,17462.0,17461.0,4.76070904]
[1673428794814,3.095e-05,17462.0,17461.0,5.85808486]
[1673428795594,3.095e-05,17462.0,17461.0,4.76070904]
[1673428796096,3.095e-05,17462.0,17461.0,4.18984405]
[1673428797406,3.095e-05,17462.0,17461.0,4.61670291]
[1673428797599,3.095e-05,17462.0,17461.0,4.18984405]
[1673428798094,3.095e-05,17462.0,17461.0,4.79229172]
[1673428799099,3.095e-05,17462.0,17461.0,5.3767609]
[1673428799351,3.095e-05,17462.0,17461.0,4.79229172]
[1673428801344,3.095e-05,17462.0,17461.0,5.21897437]
[1673428801842,3.095e-05,17462.0,17461.0,5.21690237]
[1673428802334,3.095e-05,17462.0,17461.0,4.79021972]
[1673428802816,3.095e-05,17462.0,17461.0,5.21688198]
[1673428805609,3.095e-05,17462.0,17461.0,5.55813102]
[1673428811697,3.095e-05,17462.0,17461.0,4.95813102]
[1673428811942,0.06868718,17464.0,17463.0,0.3]
[1673428812193,0.06868718,17464.0,17463.0,2.37734]
[1673428812903,0.06868718,17464.0,17463.0,2.84799154]
[1673428813148,0.06868718,17464.0,17463.0,2.54799154]
[1673428813894,0.07068718,17464.0,17463.0,2.57599154]
[1673428815848,0.07068718,17464.0,17463.0,2.57707753]
[1673428816098,0.07068718,17464.0,17463.0,2.57599154]
[1673428816412,0.07068718,17464.0,17463.0,3.21081985]
[1673428816918,0.07068718,17464.0,17463.0,3.21190584]
[1673428817169,0.07068718,17464.0,17463.0,4.05459366]
[1673428817419,0.07068718,17464.0,17463.0,4.35459366]
[1673428818417,0.07068718,17464.0,17463.0,3.88402469]
[1673428818680,0.07068718,17464.0,17463.0,4.18402469]
[1673428819405,0.07068718,17464.0,17463.0,4.52527373]
[1673428819649,0.07068718,17464.0,17463.0,4.18406496]
[1673428821397,0.07068718,17464.0,17463.0,4.05459366]
[1673428821660,0.07068718,17464.0,17463.0,4.64854133]
[1673428821905,0.07068718,17464.0,17463.0,4.94854133]
[1673428823405,0.07068718,17464.0,17463.0,5.11922627]
[1673428824200,0.07068718,17464.0,17463.0,4.94880297]
[1673428825488,0.07068718,17464.0,17463.0,5.11922627]
[1673428827354,0.07068718,17464.0,17463.0,4.77797723]
[1673428829562,0.07068718,17464.0,17463.0,4.35131497]
[1673428830054,0.07068718,17464.0,17463.0,4.77888189]
[1673428830311,0.07068718,17464.0,17463.0,4.35131497]
[1673428830553,0.07068718,17464.0,17463.0,4.478901]
[1673428830817,0.07068718,17464.0,17463.0,4.46155819]
[1673428831330,0.07068718,17464.0,17463.0,4.16155819]
[1673428832111,0.07061808,17464.0,17463.0,4.16155819]
[1673428832356,0.07061808,17464.0,17463.0,3.39667578]
[1673428832661,0.07061808,17464.0,17463.0,2.76184747]
[1673428832861,1.06506641,17464.0,17463.0,2.59087969]
[1673428833129,0.94979506,17464.0,17463.0,2.59087969]
[1673428833402,1.42458331,17464.0,17463.0,1.34439041]
[1673428833921,1.06516031,17464.0,17463.0,1.34439041]
[1673428835467,1.06492283,17464.0,17463.0,1.34439041]
[1673428836000,1.06497033,17464.0,17463.0,1.34439041]
[1673428836545,1.42439333,17464.0,17463.0,1.173278]
[1673428837017,1.06497033,17464.0,17463.0,1.173278]
[1673428838306,1.42439333,17464.0,17463.0,0.600639]
[1673428838583,1.06497033,17464.0,17463.0,0.600639]
[1673428838823,1.75239333,17464.0,17463.0,0.600639]
[1673428842461,1.75239333,17464.0,17463.0,0.028]
[1673428845779,1.9242953,17464.0,17463.0,0.028]
[1673428848829,2.0878953,17464.0,17463.0,0.028]
[1673428852495,1.91599333,17464.0,17463.0,0.028]
[1673428853012,1.58799333,17464.0,17463.0,0.02806185]
[1673428853260,0.75397206,17464.0,17463.0,0.02806185]
[1673428853507,0.75397206,17464.0,17463.0,0.028]
[1673428854267,1.58813759,17464.0,17463.0,0.028]
[1673428860277,1.58813759,17464.0,17463.0,2.03738427]
[1673428860278,0.07061808,17464.0,17463.0,2.03738427]
[1673428860528,0.07054926,17464.0,17463.0,2.26791968]
[1673428860775,0.07054926,17464.0,17463.0,2.56791968]
[1673428861075,0.07054926,17464.0,17463.0,2.82457097]
[1673428861342,0.07054926,17464.0,17463.0,2.52457097]
[1673428861612,0.07054926,17464.0,17463.0,2.26791968]
[1673428861888,0.07054926,17464.0,17463.0,2.26622368]
[1673428862449,0.07054926,17464.0,17463.0,3.25502151]
[1673428862710,0.07054926,17464.0,17463.0,4.57127026]
[1673428863230,0.07054926,17464.0,17463.0,4.57126483]
[1673428863531,0.07054926,17464.0,17463.0,4.27126483]
[1673428863786,0.07054926,17464.0,17463.0,2.95578846]
[1673428864046,0.07054926,17464.0,17463.0,1.34228568]
[1673428864323,0.07054926,17464.0,17463.0,1.171582]
[1673428864581,0.07054926,17464.0,17463.0,0.598943]
[1673428864582,0.64702243,17464.0,17463.0,0.598943]
[1673428864837,1.00644543,17464.0,17463.0,0.598943]
[1673428865089,1.33444543,17464.0,17463.0,0.026304]
[1673428865348,1.33444543,17464.0,17461.0,1.14548007]
[1673428865349,1.47008782,17464.0,17461.0,1.14548007]
[1673428865616,0.02496172,17462.0,17461.0,1.83294986]
[1673428865870,0.38438472,17462.0,17461.0,1.14548007]
[1673428866135,0.74711208,17462.0,17461.0,1.14548007]
[1673428866374,0.74711208,17462.0,17461.0,1.25248007]
[1673428866880,0.74711208,17462.0,17461.0,1.79018407]
[1673428867138,0.75311208,17462.0,17461.0,1.79018407]
[1673428869173,0.75311208,17462.0,17461.0,1.79027443]
[1673428869426,0.75311208,17462.0,17461.0,1.79018407]
[1673428869684,0.75311208,17462.0,17461.0,2.36288807]
[1673428870989,0.03096172,17462.0,17461.0,3.0667586]
[1673428871290,0.03096172,17462.0,17461.0,3.23746228]
[1673428871511,0.03096172,17462.0,17461.0,3.49411357]
[1673428872062,0.03096172,17462.0,17461.0,3.92773727]
[1673428872790,0.03096172,17462.0,17461.0,5.37318901]
[1673428873050,0.03096172,17462.0,17461.0,5.90398852]
[1673428873312,0.03096172,17462.0,17461.0,6.50398852]
[1673428873564,0.03096172,17462.0,17461.0,6.33157455]
[1673428873870,0.03096172,17462.0,17461.0,6.50372459]
[1673428874326,0.03096172,17462.0,17461.0,6.50553201]
[1673428874834,0.03096172,17462.0,17461.0,7.27067835]
[1673428877922,0.03096172,17462.0,17461.0,6.92859816]
[1673428878455,0.03096172,17462.0,17461.0,7.27037916]
[1673428879945,0.03096172,17462.0,17461.0,6.92859816]
[1673428880456,0.03096172,17462.0,17461.0,6.92851168]
[1673428882498,0.03096172,17462.0,17461.0,7.09131168]
[1673428884059,0.03096172,17462.0,17461.0,6.49131168]
[1673428884587,0.03096172,17462.0,17461.0,7.09131168]
[1673428885616,0.03096172,17462.0,17461.0,6.49131168]
[1673428886375,0.03096172,17462.0,17461.0,6.83288151]
[1673428886889,0.03096172,17462.0,17461.0,6.83288719]
[1673428887139,0.03096172,17462.0,17461.0,7.09131168]
[1673428888163,0.03096172,17462.0,17461.0,6.48950426]
[1673428893495,0.03096172,17462.0,17461.0,6.8311565]
[1673428894006,0.03096172,17462.0,17461.0,6.48950426]
[1673428895297,0.03096172,17462.0,17461.0,6.83116762]
[1673428895567,0.03096172,17462.0,17461.0,6.48950426]
[1673428895788,0.03096172,17462.0,17461.0,5.34411067]
[1673428896078,0.03096172,17462.0,17461.0,5.34419673]
[1673428896333,0.03096172,17462.0,17461.0,5.68585079]
[1673428898870,0.03096172,17462.0,17461.0,5.68576473]
[1673428899127,0.03096172,17462.0,17461.0,5.68585079]
[1673428900123,0.03096172,17462.0,17461.0,5.34419673]
[1673428902883,0.07795639,17462.0,17461.0,5.34419673]
[1673428904574,0.07795639,17462.0,17461.0,4.9166107]
[1673428907603,0.07795639,17462.0,17461.0,4.21274017]
[1673428907868,0.07795639,17462.0,17461.0,5.99108642]
[1673428908115,0.07795639,17462.0,17461.0,5.51626562]
[1673428908417,0.07795639,17462.0,17461.0,5.00411182]
[1673428908676,0.01583991,17464.0,17462.0,0.3]
[1673428908942,0.01583991,17464.0,17463.0,4.28092138]
[1673428909193,0.01583991,17464.0,17463.0,5.84566667]
[1673428910010,0.01583991,17464.0,17463.0,5.98466667]
[1673428910541,0.01583991,17464.0,17463.0,5.99310102]
[1673428910799,0.01583991,17464.0,17463.0,6.05315573]
[1673428911301,0.01583991,17464.0,17463.0,6.5655862]
[1673428911553,0.02543076,17465.0,17464.0,0.94392914]
[1673428911810,0.02543076,17465.0,17464.0,5.27241311]
[1673428912080,0.02543076,17465.0,17464.0,6.14043871]
[1673428912383,0.02543076,17465.0,17464.0,5.00958371]
[1673428912855,0.00543076,17465.0,17464.0,5.57251202]
[1673428913126,0.00543076,17465.0,17464.0,5.71151202]
[1673428913380,0.00543076,17465.0,17464.0,4.58055811]
[1673428914166,0.00543076,17465.0,17464.0,5.15314325]
[1673428914394,0.00543076,17465.0,17464.0,4.58055811]
[1673428915201,0.00543076,17465.0,17464.0,5.14478219]
[1673428915977,0.00543076,17465.0,17464.0,5.57146747]
[1673428916240,0.00543076,17465.0,17464.0,5.91283419]
[1673428916485,0.00543076,17465.0,17464.0,5.57146747]
[1673428917008,0.00543076,17465.0,17464.0,5.91284275]
[1673428920039,0.00543076,17465.0,17464.0,5.7421495]
[1673428920554,0.00543076,17465.0,17464.0,5.74215015]
[1673428920834,0.00543076,17465.0,17464.0,5.91284275]
[1673428923378,0.00543076,17465.0,17464.0,5.00724339]
[1673428923891,0.00543076,17465.0,17464.0,5.73031803]
[1673428924647,0.00543076,17465.0,17464.0,5.56641803]
[1673428925401,0.00543076,17465.0,17464.0,5.45792016]
[1673428925659,0.0265653,17466.0,17465.0,1.00405758]
[1673428925904,0.0265653,17466.0,17465.0,5.15536548]
[1673428926429,0.0265653,17466.0,17465.0,4.98474668]
[1673428926695,0.0265653,17466.0,17465.0,5.29536548]
[1673428926950,0.0265653,17466.0,17465.0,5.12474517]
[1673428927453,0.0265653,17466.0,17465.0,5.1247416]
[1673428927695,0.0265653,17466.0,17465.0,5.29536548]
[1673428928171,0.0265653,17466.0,17465.0,5.12472685]
[1673428928437,0.0265653,17466.0,17465.0,5.29536548]
[1673428928720,0.0265653,17466.0,17465.0,4.84456867]
[1673428928721,3e-07,17466.0,17465.0,4.84456867]
[1673428929011,0.01891959,17468.0,17466.0,0.85466342]
[1673428929223,0.01891959,17468.0,17467.0,5.54867598]
[1673428929731,0.01891959,17468.0,17467.0,5.88961491]
[1673428929986,0.01891959,17468.0,17467.0,5.88962663]
[1673428930250,0.01891959,17468.0,17467.0,5.71915591]
[1673428930496,0.01891959,17468.0,17467.0,5.85815591]
[1673428930993,0.01891959,17468.0,17467.0,6.63598696]
[1673428931244,0.01891959,17468.0,17467.0,6.46541371]
[1673428932007,0.01891959,17468.0,17467.0,6.63598696]
[1673428932256,0.01891959,17468.0,17467.0,6.46532026]
[1673428933024,0.01891959,17468.0,17467.0,5.31986852]
[1673428933294,0.01891959,17468.0,17467.0,3.58774418]
[1673428934755,0.01891959,17468.0,17467.0,3.88774418]
[1673428937722,0.60027586,17468.0,17467.0,2.38643618]
[1673428937969,0.01891959,17468.0,17467.0,1.856524]
[1673428938481,0.01891959,17468.0,17467.0,2.215947]
[1673428938732,0.01891959,17468.0,17467.0,1.856524]
[1673428939478,0.01891959,17468.0,17467.0,2.02688558]
[1673428939741,0.01891959,17468.0,17467.0,1.856524]
[1673428940787,0.01891959,17468.0,17467.0,3.67160839]
[1673428941275,0.01891959,17468.0,17467.0,4.1174674]
[1673428941523,0.01891959,17468.0,17467.0,4.11759112]
[1673428943338,0.01891959,17468.0,17467.0,5.43317644]
[1673428946359,0.01891959,17468.0,17467.0,5.13317644]
[1673428946612,0.01891959,17468.0,17467.0,3.45831096]
[1673428947092,0.01891959,17468.0,17467.0,4.77365969]
[1673428947344,0.01891959,17468.0,17467.0,5.30387699]
[1673428947603,0.01891959,17468.0,17467.0,5.13377493]
[1673428947851,0.01891959,17468.0,17467.0,5.07435193]
[1673428948112,0.01891959,17468.0,17467.0,5.5005498]
[1673428948625,0.01891959,17468.0,17467.0,5.8599728]
[1673428948884,0.01891959,17468.0,17467.0,5.60387699]
[1673428949135,0.01891959,17468.0,17467.0,5.07437005]
[1673428949384,0.01891959,17468.0,17467.0,5.24445399]
[1673428949633,0.01891959,17468.0,17467.0,5.60387699]
[1673428950389,0.01891959,17468.0,17467.0,5.24445399]
[1673428951623,0.01891959,17468.0,17467.0,5.26292634]
[1673428952406,0.1634,17469.0,17468.0,0.30180543]
[1673428952650,0.1634,17469.0,17468.0,4.29469573]
[1673428952927,0.1634,17469.0,17468.0,4.83306093]
[1673428953447,0.1634,17469.0,17468.0,5.00313077]
[1673428953936,0.1634,17469.0,17468.0,5.14213077]
[1673428954428,0.1634,17469.0,17468.0,4.80062673]
[1673428954952,0.1634,17469.0,17468.0,5.14206014]
[1673428955202,0.1634,17469.0,17468.0,4.80062673]
[1673428955936,0.1634,17469.0,17468.0,5.1420599]
[1673428956717,0.18935945,17470.0,17468.0,4.80062673]
[1673428956718,0.02525945,17470.0,17468.0,4.80062673]
[1673428956976,0.02525945,17470.0,17469.0,2.84777025]
[1673428957237,0.02025945,17470.0,17469.0,4.62658793]
[1673428957756,0.02025945,17470.0,17469.0,4.79673065]
[1673428958023,0.02025945,17470.0,17469.0,4.62660642]
[1673428959325,0.02025945,17470.0,17469.0,4.79673065]
[1673428959789,0.02025945,17470.0,17469.0,5.05283905]
[1673428960044,0.02025945,17470.0,17469.0,4.76664118]
[1673428960508,0.02025945,17470.0,17469.0,4.76919309]
[1673428961759,0.02025945,17470.0,17469.0,4.46664118]
[1673428962018,0.02025945,17470.0,17469.0,4.40721818]
[1673428962448,0.02025945,17470.0,17469.0,4.10721818]
[1673428962695,0.02025945,17470.0,17469.0,5.15533777]
[1673428962940,0.02025945,17470.0,17469.0,5.76131555]
[1673428963270,0.02025945,17470.0,17469.0,5.50264892]
[1673428963527,0.02025945,17470.0,17469.0,5.88747191]
[1673428963787,0.02025945,17470.0,17469.0,4.7291399]
[1673428964034,0.02025945,17470.0,17469.0,5.33241912]
[1673428964281,0.02025945,17470.0,17469.0,4.5891399]
[1673428964538,0.02025945,17470.0,17469.0,5.71303296]
[1673428964777,0.02025945,17470.0,17469.0,5.16858334]
[1673428965023,0.02025945,17470.0,17469.0,4.59776748]
[1673428965280,0.02025945,17470.0,17469.0,5.27405034]
[1673428965533,0.02025945,17470.0,17469.0,5.27405897]
[1673428965785,0.02025945,17470.0,17469.0,5.41305897]
[1673428966027,0.02025945,17470.0,17469.0,5.40455897]
[1673428966278,0.02025945,17470.0,17469.0,5.83108453]
[1673428967788,3.29459393,17474.0,17470.0,0.3]
[1673428968034,3.29459393,17474.0,17471.0,1.63162442]
[1673428968035,0.8408261,17474.0,17471.0,1.63162442]
[1673428968282,0.23700181,17473.0,17472.0,0.00012756]
[1673428968542,0.23700181,17473.0,17472.0,0.572344]
[1673428968805,0.59642481,17473.0,17471.0,0.99983142]
[1673428969054,0.523523,17472.0,17471.0,0.87237]
[1673428969324,0.1641,17472.0,17471.0,0.57237]
[1673428969845,0.39539539,17472.0,17471.0,0.57237]
[1673428970338,0.1641,17472.0,17471.0,0.57237]
[1673428970875,0.1641,17472.0,17471.0,0.71137]
[1673428971144,0.686258,17472.0,17471.0,0.71137]
[1673428971901,0.686258,17472.0,17471.0,0.139]
[1673428972161,0.873036,17472.0,17471.0,0.139]
[1673428972931,0.91319999,17472.0,17471.0,0.139]
[1673428975339,0.91319999,17472.0,17471.0,0.13912757]
[1673428975600,0.91319999,17472.0,17471.0,0.139]
[1673428983975,0.91319999,17472.0,17471.0,0.13913228]